[Event "*** SCC Grand Prix: Titled Tuesday Blitz"]
[Site "Chess.com"]
[Date "2020.09.29"]
[Round "3"]
[White "NuidisVulko"]
[Black "Ze-Pequeno"]
[Result "1-0"]
[WhiteElo "2494"]
[BlackElo "2258"]
[TimeControl "180+1"]
[EndTime "10:27:07 PDT"]
[Termination "NuidisVulko won on time"]

1. e4 {[%clk 0:03:00.9]} 1... c5 {[%clk 0:02:59.4]} 2. Nf3 {[%clk 0:03:01.1]}
2... d6 {[%clk 0:02:59.4]} 3. c3 {[%clk 0:03:00.8]} 3... Nf6 {[%clk 0:02:59.2]}
4. Bd3 {[%clk 0:03:01.5]} 4... Bg4 {[%clk 0:02:57.9]} 5. h3 {[%clk 0:03:00.8]}
5... Bh5 {[%clk 0:02:57.4]} 6. Bc2 {[%clk 0:02:59.3]} 6... Nc6 {[%clk
0:02:55.8]} 7. d3 {[%clk 0:02:59]} 7... e6 {[%clk 0:02:54.7]} 8. Nbd2 {[%clk
0:02:59.3]} 8... Be7 {[%clk 0:02:54.1]} 9. Nf1 {[%clk 0:02:56.8]} 9... d5 {[%clk
0:02:47.8]} 10. Qe2 {[%clk 0:02:56.8]} 10... O-O {[%clk 0:02:27.3]} 11. Ng3
{[%clk 0:02:56.4]} 11... Bg6 {[%clk 0:02:07.2]} 12. O-O {[%clk 0:02:55.8]} 12...
Qc7 {[%clk 0:01:55]} 13. Nh4 {[%clk 0:02:52.4]} 13... Nd7 {[%clk 0:01:27]} 14.
Nxg6 {[%clk 0:02:49]} 14... hxg6 {[%clk 0:01:26]} 15. f4 {[%clk 0:02:41.2]}
15... Rfe8 {[%clk 0:01:15.6]} 16. Bd2 {[%clk 0:02:40.6]} 16... Rad8 {[%clk
0:01:13.6]} 17. Rae1 {[%clk 0:02:41]} 17... dxe4 {[%clk 0:01:06.7]} 18. dxe4
{[%clk 0:02:36.5]} 18... Nf6 {[%clk 0:01:02.9]} 19. e5 {[%clk 0:02:34.2]} 19...
Nd5 {[%clk 0:01:01.6]} 20. Ne4 {[%clk 0:02:34.6]} 20... a6 {[%clk 0:00:51.2]}
21. Kh2 {[%clk 0:02:33.9]} 21... b5 {[%clk 0:00:51]} 22. Rd1 {[%clk 0:02:19.9]}
22... Nb6 {[%clk 0:00:37.3]} 23. Be3 {[%clk 0:02:09.5]} 23... Na5 {[%clk
0:00:20.5]} 24. Qf2 {[%clk 0:02:00.8]} 24... Nd7 {[%clk 0:00:17.3]} 25. b3
{[%clk 0:01:52.2]} 25... Nb7 {[%clk 0:00:12.7]} 26. h4 {[%clk 0:01:48]} 26...
Nb6 {[%clk 0:00:11.6]} 27. h5 {[%clk 0:01:45.8]} 27... gxh5 {[%clk 0:00:12.5]}
28. Ng3 {[%clk 0:01:36.8]} 28... g6 {[%clk 0:00:10.6]} 29. Qf3 {[%clk
0:01:10.1]} 29... Nd5 {[%clk 0:00:09.9]} 30. Bd2 {[%clk 0:01:10.2]} 30... h4
{[%clk 0:00:07.4]} 31. Ne4 {[%clk 0:01:01.4]} 31... c4 {[%clk 0:00:05.9]} 32. b4
{[%clk 0:01:00.8]} 32... a5 {[%clk 0:00:05.9]} 33. a3 {[%clk 0:01:01.3]} 33...
axb4 {[%clk 0:00:05.7]} 34. axb4 {[%clk 0:01:01.8]} 34... Ra8 {[%clk 0:00:04.8]}
35. Qg4 {[%clk 0:00:57.8]} 35... Kg7 {[%clk 0:00:05.2]} 36. Ng5 {[%clk
0:00:53.1]} 1-0

[Event "*** SCC Grand Prix: Titled Tuesday Blitz"]
[Site "Chess.com"]
[Date "2020.09.29"]
[Round "3"]
[White "Zhuu96"]
[Black "boasovietica"]
[Result "1-0"]
[WhiteElo "2808"]
[BlackElo "2436"]
[TimeControl "180+1"]
[EndTime "10:27:08 PDT"]
[Termination "Zhuu96 won by resignation"]

1. d4 {[%clk 0:03:00.9]} 1... Nf6 {[%clk 0:02:59.6]} 2. c4 {[%clk 0:03:00.8]}
2... e6 {[%clk 0:02:59.6]} 3. Nf3 {[%clk 0:03:00.2]} 3... d5 {[%clk 0:02:59.6]}
4. Nc3 {[%clk 0:02:59.9]} 4... Nbd7 {[%clk 0:02:58.9]} 5. e3 {[%clk 0:02:57.9]}
5... c6 {[%clk 0:02:46.2]} 6. Be2 {[%clk 0:02:57.3]} 6... dxc4 {[%clk 0:02:37]}
7. a4 {[%clk 0:02:56.3]} 7... Bb4 {[%clk 0:02:29.9]} 8. O-O {[%clk 0:02:53.8]}
8... Qa5 {[%clk 0:02:20.1]} 9. Nd2 {[%clk 0:02:52.1]} 9... b5 {[%clk 0:02:10.7]}
10. Qc2 {[%clk 0:02:43.1]} 10... a6 {[%clk 0:02:06.7]} 11. Bf3 {[%clk
0:02:38.9]} 11... Bb7 {[%clk 0:02:04.2]} 12. axb5 {[%clk 0:02:07.8]} 12... Qxa1
{[%clk 0:01:53.2]} 13. bxc6 {[%clk 0:02:06.9]} 13... Bxc6 {[%clk 0:01:50.8]} 14.
Bxc6 {[%clk 0:02:07]} 14... Rc8 {[%clk 0:01:50.9]} 15. Ba4 {[%clk 0:01:52.9]}
15... O-O {[%clk 0:01:11]} 16. Nde4 {[%clk 0:01:30.7]} 16... Nxe4 {[%clk
0:01:03.9]} 17. Bd2 {[%clk 0:01:16.3]} 17... Qxf1+ {[%clk 0:00:57.4]} 18. Kxf1
{[%clk 0:01:16.3]} 18... Nxd2+ {[%clk 0:00:51.3]} 19. Qxd2 {[%clk 0:01:16.1]}
19... Nb6 {[%clk 0:00:50]} 20. Bc2 {[%clk 0:01:15.2]} 20... Nd5 {[%clk
0:00:44.7]} 21. e4 {[%clk 0:01:14.6]} 21... Nxc3 {[%clk 0:00:44.3]} 22. bxc3
{[%clk 0:01:08.4]} 22... Be7 {[%clk 0:00:42.6]} 23. d5 {[%clk 0:01:05.4]} 23...
exd5 {[%clk 0:00:40.2]} 24. exd5 {[%clk 0:01:05.3]} 24... Rfd8 {[%clk
0:00:40.7]} 25. Qe2 {[%clk 0:00:45.1]} 25... Bf6 {[%clk 0:00:38.7]} 26. Qf3
{[%clk 0:00:44.7]} 26... Kf8 {[%clk 0:00:23.2]} 27. g4 {[%clk 0:00:42.6]} 27...
h6 {[%clk 0:00:22.8]} 28. Bf5 {[%clk 0:00:40.8]} 28... Rc5 {[%clk 0:00:19.2]}
29. Be4 {[%clk 0:00:40.8]} 29... a5 {[%clk 0:00:18.4]} 30. Qe3 {[%clk
0:00:40.9]} 30... Rc7 {[%clk 0:00:15.9]} 31. Qb6 {[%clk 0:00:40.2]} 31... Re7
{[%clk 0:00:05.9]} 32. Qxd8+ {[%clk 0:00:39.8]} 32... Re8 {[%clk 0:00:04.7]} 33.
Qd6+ {[%clk 0:00:39.9]} 1-0

[Event "*** SCC Grand Prix: Titled Tuesday Blitz"]
[Site "Chess.com"]
[Date "2020.09.29"]
[Round "3"]
[White "GM_LOADING"]
[Black "rakshi2005"]
[Result "1-0"]
[WhiteElo "2498"]
[BlackElo "2264"]
[TimeControl "180+1"]
[EndTime "10:27:09 PDT"]
[Termination "GM_LOADING won by resignation"]

1. Nf3 {[%clk 0:03:00.9]} 1... Nf6 {[%clk 0:02:52.7]} 2. d4 {[%clk 0:02:59.2]}
2... g6 {[%clk 0:02:41.3]} 3. Bg5 {[%clk 0:02:56.6]} 3... Bg7 {[%clk 0:02:39.7]}
4. Nbd2 {[%clk 0:02:55.8]} 4... O-O {[%clk 0:02:39.3]} 5. e3 {[%clk 0:02:53.3]}
5... d6 {[%clk 0:02:39.6]} 6. Bd3 {[%clk 0:02:49.1]} 6... Nc6 {[%clk 0:02:37.5]}
7. O-O {[%clk 0:02:48]} 7... e5 {[%clk 0:02:36.3]} 8. dxe5 {[%clk 0:02:47.6]}
8... dxe5 {[%clk 0:02:35.4]} 9. Bb5 {[%clk 0:02:48.1]} 9... Qe7 {[%clk
0:02:33.5]} 10. Nc4 {[%clk 0:02:40.8]} 10... Rd8 {[%clk 0:02:25.8]} 11. Qe2
{[%clk 0:02:36.2]} 11... Bg4 {[%clk 0:02:24.7]} 12. h3 {[%clk 0:02:33.9]} 12...
Bxf3 {[%clk 0:02:18.5]} 13. Qxf3 {[%clk 0:02:34.8]} 13... e4 {[%clk 0:02:17.2]}
14. Qf4 {[%clk 0:02:27.3]} 14... h6 {[%clk 0:01:47.4]} 15. Bxf6 {[%clk
0:02:23.8]} 15... Qxf6 {[%clk 0:01:42.8]} 16. Qxf6 {[%clk 0:02:20.9]} 16... Bxf6
{[%clk 0:01:42.2]} 17. Bxc6 {[%clk 0:02:21.8]} 17... bxc6 {[%clk 0:01:42]} 18.
Rfd1 {[%clk 0:02:22.3]} 18... Rab8 {[%clk 0:01:39.8]} 19. c3 {[%clk 0:02:18.8]}
19... Kf8 {[%clk 0:01:34.8]} 20. Kf1 {[%clk 0:02:12.5]} 20... Ke7 {[%clk
0:01:33.8]} 21. Na5 {[%clk 0:02:04.5]} 21... Rxd1+ {[%clk 0:01:23.2]} 22. Rxd1
{[%clk 0:02:05.4]} 22... Rxb2 {[%clk 0:01:23.3]} 23. Nxc6+ {[%clk 0:02:05.7]}
23... Ke6 {[%clk 0:01:23.1]} 24. Nxa7 {[%clk 0:02:05.6]} 24... Rxa2 {[%clk
0:01:22.8]} 25. Nb5 {[%clk 0:02:05.6]} 25... c6 {[%clk 0:01:18.3]} 26. Nd4+
{[%clk 0:01:57.6]} 26... Bxd4 {[%clk 0:01:18.1]} 27. cxd4 {[%clk 0:01:57.9]}
27... Kd5 {[%clk 0:01:17.4]} 28. Rc1 {[%clk 0:01:55.3]} 28... Ra5 {[%clk
0:01:15.7]} 29. g4 {[%clk 0:01:55.3]} 29... c5 {[%clk 0:01:14.8]} 30. dxc5
{[%clk 0:01:55.9]} 30... Rxc5 {[%clk 0:01:13.7]} 31. Rd1+ {[%clk 0:01:56.8]}
31... Ke5 {[%clk 0:01:13.5]} 32. Kg2 {[%clk 0:01:57.2]} 32... f5 {[%clk
0:01:11.6]} 33. Kg3 {[%clk 0:01:57.1]} 33... g5 {[%clk 0:01:09.8]} 34. gxf5
{[%clk 0:01:54.6]} 34... Kxf5 {[%clk 0:01:10.1]} 35. h4 {[%clk 0:01:53.3]} 35...
Rc2 {[%clk 0:01:08.8]} 36. h5 {[%clk 0:01:50.9]} 36... Rc6 {[%clk 0:01:02.3]}
37. Rd5+ {[%clk 0:01:48.1]} 37... Kf6 {[%clk 0:01:01.7]} 38. Rd8 {[%clk
0:01:46.6]} 38... Rc1 {[%clk 0:00:51.5]} 39. Kg2 {[%clk 0:01:44.4]} 39... Kf5
{[%clk 0:00:49.8]} 40. Rh8 {[%clk 0:01:40.7]} 40... Kg4 {[%clk 0:00:48.5]} 41.
Rxh6 {[%clk 0:01:40]} 41... Kh4 {[%clk 0:00:48.5]} 42. Rh8 {[%clk 0:01:36.7]}
42... g4 {[%clk 0:00:47.6]} 43. h6 {[%clk 0:01:36.8]} 43... Rc5 {[%clk
0:00:42.9]} 44. Re8 {[%clk 0:01:33.3]} 44... Rh5 {[%clk 0:00:42]} 45. Re6 {[%clk
0:01:29.4]} 45... Kg5 {[%clk 0:00:37.6]} 46. Re5+ {[%clk 0:01:16.2]} 46... Kxh6
{[%clk 0:00:37.3]} 47. Rxe4 {[%clk 0:01:16.6]} 47... Rf5 {[%clk 0:00:35.4]} 48.
Rxg4 {[%clk 0:01:15.8]} 48... Kh5 {[%clk 0:00:35.3]} 49. Rg8 {[%clk 0:01:13.9]}
49... Ra5 {[%clk 0:00:33.1]} 50. f4 {[%clk 0:01:12.9]} 50... Ra3 {[%clk
0:00:31.1]} 51. Kf3 {[%clk 0:01:12.2]} 51... Kh6 {[%clk 0:00:30.7]} 52. f5
{[%clk 0:01:12]} 52... Kh7 {[%clk 0:00:31.2]} 53. Rg1 {[%clk 0:01:11.7]} 1-0

[Event "*** SCC Grand Prix: Titled Tuesday Blitz"]
[Site "Chess.com"]
[Date "2020.09.29"]
[Round "3"]
[White "KaspMagAlpha"]
[Black "Superfelix"]
[Result "0-1"]
[WhiteElo "2255"]
[BlackElo "2486"]
[TimeControl "180+1"]
[EndTime "10:27:09 PDT"]
[Termination "Superfelix won by checkmate"]

1. d4 {[%clk 0:03:00.9]} 1... g6 {[%clk 0:02:58.9]} 2. c4 {[%clk 0:03:00.4]}
2... Bg7 {[%clk 0:02:58.9]} 3. g3 {[%clk 0:03:00.2]} 3... Nf6 {[%clk 0:02:58.4]}
4. Bg2 {[%clk 0:02:58.8]} 4... d5 {[%clk 0:02:58.6]} 5. cxd5 {[%clk 0:02:55]}
5... Nxd5 {[%clk 0:02:59.5]} 6. Nf3 {[%clk 0:02:52.1]} 6... Nb6 {[%clk
0:02:59.5]} 7. O-O {[%clk 0:02:50.5]} 7... O-O {[%clk 0:02:59.9]} 8. Nc3 {[%clk
0:02:50.3]} 8... Nc6 {[%clk 0:03:00.1]} 9. e3 {[%clk 0:02:50.2]} 9... Re8 {[%clk
0:02:59.9]} 10. Re1 {[%clk 0:02:49.7]} 10... e5 {[%clk 0:03:00]} 11. d5 {[%clk
0:02:49]} 11... Na5 {[%clk 0:03:00.2]} 12. e4 {[%clk 0:02:49.1]} 12... c6 {[%clk
0:03:00.3]} 13. Bg5 {[%clk 0:02:37.7]} 13... f6 {[%clk 0:02:58.3]} 14. Be3
{[%clk 0:02:37.1]} 14... Nac4 {[%clk 0:02:55.9]} 15. b3 {[%clk 0:02:35.1]} 15...
Nxe3 {[%clk 0:02:55.6]} 16. Rxe3 {[%clk 0:02:34.9]} 16... cxd5 {[%clk
0:02:49.2]} 17. Nxd5 {[%clk 0:02:33.9]} 17... Nxd5 {[%clk 0:02:48.9]} 18. exd5
{[%clk 0:02:31.5]} 18... f5 {[%clk 0:02:40.9]} 19. Re2 {[%clk 0:02:14.3]} 19...
e4 {[%clk 0:02:37.4]} 20. Nd4 {[%clk 0:02:11.5]} 20... Qxd5 {[%clk 0:02:33.9]}
21. Rd2 {[%clk 0:02:11.6]} 21... Qe5 {[%clk 0:02:14.3]} 22. Rc1 {[%clk
0:02:08.8]} 22... Bd7 {[%clk 0:02:09]} 23. Bf1 {[%clk 0:02:08.3]} 23... Rad8
{[%clk 0:02:02.5]} 24. Bc4+ {[%clk 0:01:45.2]} 24... Kh8 {[%clk 0:02:01.9]} 25.
Ne6 {[%clk 0:01:36.6]} 25... Rxe6 {[%clk 0:01:51.2]} 26. Rxd7 {[%clk 0:01:10.8]}
26... Rxd7 {[%clk 0:01:39.1]} 27. Qxd7 {[%clk 0:01:10]} 27... Re8 {[%clk
0:01:32.9]} 28. Qxb7 {[%clk 0:01:07.9]} 28... e3 {[%clk 0:01:28.4]} 29. Rf1
{[%clk 0:00:49.5]} 29... exf2+ {[%clk 0:01:21.2]} 30. Rxf2 {[%clk 0:00:49]}
30... Qe3 {[%clk 0:01:03.9]} 31. Kg2 {[%clk 0:00:48.6]} 31... Bd4 {[%clk
0:00:56.7]} 32. Re2 {[%clk 0:00:47.2]} 32... Qg1+ {[%clk 0:00:56.6]} 33. Kh3
{[%clk 0:00:42.2]} 33... Qf1+ {[%clk 0:00:56.8]} 34. Rg2 {[%clk 0:00:41.9]}
34... Qd1 {[%clk 0:00:43.6]} 35. g4 {[%clk 0:00:16.8]} 35... Re3+ {[%clk
0:00:43.4]} 36. Kh4 {[%clk 0:00:15.1]} 36... Bf6+ {[%clk 0:00:42.2]} 37. g5
{[%clk 0:00:10.7]} 37... Qh5# {[%clk 0:00:42.1]} 0-1

[Event "*** SCC Grand Prix: Titled Tuesday Blitz"]
[Site "Chess.com"]
[Date "2020.09.29"]
[Round "3"]
[White "PavelShkapenko"]
[Black "Jospem"]
[Result "0-1"]
[WhiteElo "2702"]
[BlackElo "2971"]
[TimeControl "180+1"]
[EndTime "10:27:11 PDT"]
[Termination "Jospem won by resignation"]

1. e4 {[%clk 0:03:00.9]} 1... e5 {[%clk 0:02:59.5]} 2. Nf3 {[%clk 0:03:00.4]}
2... Nc6 {[%clk 0:03:00.2]} 3. g3 {[%clk 0:02:59.6]} 3... Nf6 {[%clk 0:02:56]}
4. d3 {[%clk 0:02:58.8]} 4... Bc5 {[%clk 0:02:55.8]} 5. Bg2 {[%clk 0:02:58.4]}
5... O-O {[%clk 0:02:55.8]} 6. O-O {[%clk 0:02:58.5]} 6... d5 {[%clk 0:02:49.2]}
7. exd5 {[%clk 0:02:58]} 7... Nxd5 {[%clk 0:02:50.1]} 8. Bd2 {[%clk 0:02:57.7]}
8... Re8 {[%clk 0:02:48.2]} 9. Nc3 {[%clk 0:02:57.9]} 9... Nb6 {[%clk
0:02:30.2]} 10. Re1 {[%clk 0:02:51.8]} 10... f6 {[%clk 0:02:27.1]} 11. Be3
{[%clk 0:02:51.4]} 11... Bxe3 {[%clk 0:02:15.4]} 12. Rxe3 {[%clk 0:02:50]} 12...
Bg4 {[%clk 0:02:14.8]} 13. h3 {[%clk 0:02:46.9]} 13... Bh5 {[%clk 0:02:14.7]}
14. Qd2 {[%clk 0:02:43.6]} 14... Qd7 {[%clk 0:02:13.2]} 15. Rae1 {[%clk
0:02:36.4]} 15... Rad8 {[%clk 0:02:12.7]} 16. g4 {[%clk 0:02:19.9]} 16... Bf7
{[%clk 0:02:09.8]} 17. g5 {[%clk 0:02:20.3]} 17... Nc4 {[%clk 0:01:59.8]} 18.
dxc4 {[%clk 0:02:17.9]} 18... Qxd2 {[%clk 0:02:00.7]} 19. Nxd2 {[%clk
0:02:18.1]} 19... Rxd2 {[%clk 0:02:01.6]} 20. gxf6 {[%clk 0:02:17.5]} 20... gxf6
{[%clk 0:01:56.1]} 21. Nd5 {[%clk 0:02:17.7]} 21... Kg7 {[%clk 0:01:50.8]} 22.
R3e2 {[%clk 0:01:47.9]} 22... Rxe2 {[%clk 0:01:46.3]} 23. Rxe2 {[%clk
0:01:48.2]} 23... Nd4 {[%clk 0:01:47]} 24. Rd2 {[%clk 0:01:47.6]} 24... Rd8
{[%clk 0:01:42.6]} 25. Kf1 {[%clk 0:01:31.9]} 25... Ne6 {[%clk 0:01:25.6]} 26.
Ke1 {[%clk 0:01:28.4]} 26... c6 {[%clk 0:01:16.7]} 27. Ne3 {[%clk 0:01:28.2]}
27... Rxd2 {[%clk 0:01:17.6]} 28. Kxd2 {[%clk 0:01:28.1]} 28... Nf4 {[%clk
0:01:18.5]} 29. Bf1 {[%clk 0:01:14.6]} 29... Be6 {[%clk 0:01:18.7]} 30. Ng4
{[%clk 0:01:08.4]} 30... h5 {[%clk 0:01:13.9]} 31. Ne3 {[%clk 0:01:07]} 31...
Nxh3 {[%clk 0:01:12.5]} 32. Ke1 {[%clk 0:01:05.7]} 32... Nf4 {[%clk 0:01:12.1]}
33. b3 {[%clk 0:01:02]} 33... c5 {[%clk 0:00:59.4]} 34. Bg2 {[%clk 0:00:57.1]}
34... Nxg2+ {[%clk 0:00:51.2]} 35. Nxg2 {[%clk 0:00:56.8]} 35... Kg6 {[%clk
0:00:51.8]} 36. f4 {[%clk 0:00:50.7]} 36... Kf5 {[%clk 0:00:49.5]} 37. fxe5
{[%clk 0:00:49.9]} 37... fxe5 {[%clk 0:00:50.4]} 38. Kf2 {[%clk 0:00:50.1]}
38... Ke4 {[%clk 0:00:46.1]} 39. Ke2 {[%clk 0:00:40.1]} 39... Bg4+ {[%clk
0:00:44.7]} 40. Kd2 {[%clk 0:00:39.9]} 40... Kf3 {[%clk 0:00:44.6]} 41. Nh4+
{[%clk 0:00:40]} 41... Kg3 {[%clk 0:00:44.4]} 42. Ng6 {[%clk 0:00:39.6]} 42...
h4 {[%clk 0:00:41.7]} 43. Nxh4 {[%clk 0:00:37.4]} 43... Kxh4 {[%clk 0:00:42.6]}
44. Ke3 {[%clk 0:00:38]} 44... Bf5 {[%clk 0:00:42.3]} 45. c3 {[%clk 0:00:38.5]}
45... Kg5 {[%clk 0:00:42.6]} 46. b4 {[%clk 0:00:39.1]} 46... b6 {[%clk
0:00:41.6]} 47. a3 {[%clk 0:00:38.8]} 47... a5 {[%clk 0:00:41.6]} 48. Kf3 {[%clk
0:00:37.9]} 48... Kf6 {[%clk 0:00:40.8]} 49. Ke3 {[%clk 0:00:38]} 49... Ke6
{[%clk 0:00:41.2]} 50. Kf3 {[%clk 0:00:38.4]} 50... Bd3 {[%clk 0:00:41]} 0-1

[Event "*** SCC Grand Prix: Titled Tuesday Blitz"]
[Site "Chess.com"]
[Date "2020.09.29"]
[Round "3"]
[White "SanchezKelvin"]
[Black "kosya4ok"]
[Result "0-1"]
[WhiteElo "2380"]
[BlackElo "2588"]
[TimeControl "180+1"]
[EndTime "10:27:11 PDT"]
[Termination "kosya4ok won by resignation"]

1. d4 {[%clk 0:03:00.9]} 1... d5 {[%clk 0:02:56.5]} 2. c4 {[%clk 0:02:55.4]}
2... e6 {[%clk 0:02:49.3]} 3. Nf3 {[%clk 0:02:54.5]} 3... Nf6 {[%clk 0:02:42.2]}
4. Nc3 {[%clk 0:02:54]} 4... dxc4 {[%clk 0:02:42.7]} 5. e3 {[%clk 0:02:50.3]}
5... a6 {[%clk 0:02:40.8]} 6. a4 {[%clk 0:02:42.4]} 6... b6 {[%clk 0:02:40.2]}
7. Bxc4 {[%clk 0:02:41.5]} 7... Bb7 {[%clk 0:02:41.1]} 8. O-O {[%clk 0:02:41.3]}
8... Nbd7 {[%clk 0:02:40.1]} 9. Qe2 {[%clk 0:02:41.3]} 9... c5 {[%clk
0:02:37.4]} 10. Rd1 {[%clk 0:02:40.5]} 10... Qb8 {[%clk 0:02:30.1]} 11. d5
{[%clk 0:02:30.6]} 11... exd5 {[%clk 0:02:26]} 12. Nxd5 {[%clk 0:02:31.5]} 12...
Nxd5 {[%clk 0:02:24.5]} 13. Bxd5 {[%clk 0:02:32.4]} 13... Nf6 {[%clk 0:02:21.4]}
14. Bxb7 {[%clk 0:02:26.6]} 14... Qxb7 {[%clk 0:02:22.3]} 15. Ne5 {[%clk
0:02:26]} 15... Be7 {[%clk 0:02:18.7]} 16. b3 {[%clk 0:02:22.4]} 16... O-O
{[%clk 0:02:16.2]} 17. Bb2 {[%clk 0:02:18.5]} 17... b5 {[%clk 0:02:08.1]} 18.
Qf3 {[%clk 0:02:15.8]} 18... Qxf3 {[%clk 0:02:06.3]} 19. gxf3 {[%clk 0:02:14.9]}
19... Rfc8 {[%clk 0:02:04.3]} 20. Nd7 {[%clk 0:01:57.1]} 20... Nxd7 {[%clk
0:01:47.1]} 21. Rxd7 {[%clk 0:01:58]} 21... Bf8 {[%clk 0:01:47.4]} 22. axb5
{[%clk 0:01:56.2]} 22... axb5 {[%clk 0:01:47.1]} 23. Rxa8 {[%clk 0:01:54.5]}
23... Rxa8 {[%clk 0:01:48]} 24. Rb7 {[%clk 0:01:53.5]} 24... Ra2 {[%clk
0:01:44.6]} 25. Be5 {[%clk 0:01:52.6]} 25... f6 {[%clk 0:01:44.2]} 26. Bf4
{[%clk 0:01:52.1]} 26... b4 {[%clk 0:01:43.2]} 27. Rb8 {[%clk 0:01:30.4]} 27...
Kf7 {[%clk 0:01:42.5]} 28. Rb7+ {[%clk 0:01:30.1]} 28... Ke6 {[%clk 0:01:37.3]}
29. e4 {[%clk 0:01:23.1]} 29... Ra3 {[%clk 0:01:23]} 30. Rb8 {[%clk 0:01:18]}
30... g5 {[%clk 0:01:03.3]} 31. Bg3 {[%clk 0:01:17.6]} 31... Kf7 {[%clk
0:00:52.3]} 32. Rb7+ {[%clk 0:01:16.2]} 32... Kg6 {[%clk 0:00:49.3]} 33. Rb8
{[%clk 0:01:16.1]} 33... c4 {[%clk 0:00:45.2]} 34. bxc4 {[%clk 0:01:07.8]} 34...
Bc5 {[%clk 0:00:43.6]} 35. Rb5 {[%clk 0:01:06.4]} 35... b3 {[%clk 0:00:44]} 36.
Kg2 {[%clk 0:01:01]} 36... Bd4 {[%clk 0:00:43.3]} 37. e5 {[%clk 0:00:49.5]}
37... b2 {[%clk 0:00:40.8]} 38. e6 {[%clk 0:00:48]} 38... Ra1 {[%clk 0:00:40.3]}
39. e7 {[%clk 0:00:33]} 39... Kf7 {[%clk 0:00:39.4]} 40. Bd6 {[%clk 0:00:19.3]}
40... b1=Q {[%clk 0:00:38]} 0-1

[Event "*** SCC Grand Prix: Titled Tuesday Blitz"]
[Site "Chess.com"]
[Date "2020.09.29"]
[Round "3"]
[White "RestartingChess"]
[Black "Chessmatus"]
[Result "1-0"]
[WhiteElo "2527"]
[BlackElo "2323"]
[TimeControl "180+1"]
[EndTime "10:27:12 PDT"]
[Termination "RestartingChess won on time"]

1. e4 {[%clk 0:03:00.9]} 1... c5 {[%clk 0:03:00.1]} 2. Nf3 {[%clk 0:02:57.3]}
2... d6 {[%clk 0:03:00.6]} 3. Bb5+ {[%clk 0:02:57]} 3... Nc6 {[%clk 0:02:55.7]}
4. c4 {[%clk 0:02:57.9]} 4... Bd7 {[%clk 0:02:53.1]} 5. Nc3 {[%clk 0:02:57.5]}
5... Nf6 {[%clk 0:02:44.4]} 6. d3 {[%clk 0:02:58]} 6... g6 {[%clk 0:02:38.2]} 7.
Be3 {[%clk 0:02:58.1]} 7... Bg7 {[%clk 0:02:38.3]} 8. h3 {[%clk 0:02:58.8]} 8...
O-O {[%clk 0:02:38.1]} 9. Qd2 {[%clk 0:02:58.6]} 9... a6 {[%clk 0:02:19.9]} 10.
Bxc6 {[%clk 0:02:53.4]} 10... Bxc6 {[%clk 0:02:20.8]} 11. Bh6 {[%clk 0:02:53.8]}
11... b5 {[%clk 0:02:20.7]} 12. Bxg7 {[%clk 0:02:53.7]} 12... Kxg7 {[%clk
0:02:20.6]} 13. b3 {[%clk 0:02:54.1]} 13... bxc4 {[%clk 0:02:15.9]} 14. bxc4
{[%clk 0:02:54.1]} 14... Rb8 {[%clk 0:02:14.4]} 15. O-O {[%clk 0:02:53.8]} 15...
Qa5 {[%clk 0:01:59.6]} 16. Rfb1 {[%clk 0:02:52.4]} 16... Qc7 {[%clk 0:01:21.8]}
17. Rb3 {[%clk 0:02:47.1]} 17... Rb4 {[%clk 0:01:16.8]} 18. Rxb4 {[%clk
0:02:46.1]} 18... cxb4 {[%clk 0:01:17.7]} 19. Nd5 {[%clk 0:02:46.8]} 19... Bxd5
{[%clk 0:01:16.9]} 20. exd5 {[%clk 0:02:44]} 20... a5 {[%clk 0:01:16.5]} 21. Nd4
{[%clk 0:02:40.1]} 21... Nd7 {[%clk 0:01:10.3]} 22. Nc6 {[%clk 0:02:39]} 22...
Nc5 {[%clk 0:01:08.9]} 23. a3 {[%clk 0:02:36.2]} 23... e5 {[%clk 0:01:04.5]} 24.
Qd1 {[%clk 0:02:25.1]} 24... bxa3 {[%clk 0:01:01.5]} 25. Rxa3 {[%clk 0:02:25.1]}
25... a4 {[%clk 0:01:00.9]} 26. d4 {[%clk 0:02:22]} 26... exd4 {[%clk 0:00:56]}
27. Qxd4+ {[%clk 0:02:20.7]} 27... Kg8 {[%clk 0:00:55.4]} 28. Re3 {[%clk
0:02:19.4]} 28... h6 {[%clk 0:00:47.4]} 29. Qf6 {[%clk 0:02:17.4]} 29... Nd7
{[%clk 0:00:29.4]} 30. Qe7 {[%clk 0:02:11.9]} 30... Ra8 {[%clk 0:00:18]} 31. Rf3
{[%clk 0:02:10.5]} 31... f5 {[%clk 0:00:17.2]} 32. Qe6+ {[%clk 0:02:08.1]} 32...
Kg7 {[%clk 0:00:17.4]} 33. Ne7 {[%clk 0:02:07.8]} 33... Nf8 {[%clk 0:00:14.8]}
34. Nxf5+ {[%clk 0:01:49.1]} 34... gxf5 {[%clk 0:00:14.6]} 35. Rg3+ {[%clk
0:01:49.8]} 35... Kh8 {[%clk 0:00:14.2]} 36. Qf6+ {[%clk 0:01:50.1]} 36... Kh7
{[%clk 0:00:12.2]} 37. Qxf5+ {[%clk 0:01:50.7]} 37... Kh8 {[%clk 0:00:12]} 38.
c5 {[%clk 0:01:48]} 38... a3 {[%clk 0:00:10.2]} 39. Qf6+ {[%clk 0:01:47.3]}
39... Kh7 {[%clk 0:00:09.7]} 40. cxd6 {[%clk 0:01:48]} 40... Qd7 {[%clk
0:00:09.2]} 41. Qa1 {[%clk 0:01:36.1]} 41... a2 {[%clk 0:00:09.1]} 42. h4 {[%clk
0:01:34.6]} 42... Ng6 {[%clk 0:00:07.4]} 43. h5 {[%clk 0:01:34.7]} 43... Ne5
{[%clk 0:00:06.6]} 44. f4 {[%clk 0:01:30.9]} 44... Qa7+ {[%clk 0:00:06.3]} 45.
Kh2 {[%clk 0:01:29.5]} 45... Nd3 {[%clk 0:00:06.6]} 46. Rxd3 {[%clk 0:01:26.9]}
46... Rg8 {[%clk 0:00:06.5]} 47. Rf3 {[%clk 0:01:12.7]} 47... Qa4 {[%clk
0:00:02.1]} 48. d7 {[%clk 0:01:09.6]} 1-0